bitfinex/quotes_SOLUSD_20250429
["timestamp","ask_amount","ask_price","bid_price","bid_amount"]
[1745887637041,114.15359603,148.6,148.55,17.83359603]
[1745887637208,114.15359603,148.6,148.56,17.83359603]
[1745887637832,120.21017086,148.6,148.55,17.83359603]
[1745887638144,17.83359603,148.59,148.55,17.83359603]
[1745887639734,23.89061441,148.59,148.55,17.83359603]
[1745887640051,17.83359603,148.57,148.54,0.063]
[1745887640222,100.73359603,148.57,148.54,0.063]
[1745887640923,106.79144198,148.57,148.54,0.063]
[1745887641652,36.48324489,148.55,148.54,0.063]
[1745887641937,51.47824489,148.55,148.54,0.063]
[1745887642938,75.51256862,148.55,148.54,0.063]
[1745887643766,44.64964886,148.52,148.51,0.063]
[1745887643947,62.62540646,148.52,148.51,0.063]
[1745887644740,64.22400646,148.52,148.51,1e-08]
[1745887645253,70.28379638,148.52,148.51,1e-08]
[1745887646047,18.79181043,148.51,148.5,1e-08]
[1745887646260,36.62540646,148.51,148.5,1e-08]
[1745887647570,42.68560442,148.51,148.5,1e-08]
[1745887647941,18.64964886,148.52,148.5,1e-08]
[1745887648342,23.89328371,148.53,148.5,1e-08]
[1745887648672,6.05968768,148.53,148.5,1e-08]
[1745887648964,18.64964886,148.52,148.5,1e-08]
[1745887649157,36.48324489,148.52,148.5,1e-08]
[1745887649543,18.64964886,148.52,148.5,1e-08]
[1745887650445,36.48324489,148.52,148.5,1e-08]
[1745887651058,42.54344285,148.51,148.5,1e-08]
[1745887652643,36.48324489,148.51,148.5,1e-08]
[1745887652840,62.48324489,148.51,148.5,1e-08]
[1745887653045,68.54344285,148.51,148.5,1e-08]
[1745887656265,50.70984682,148.51,148.5,1e-08]
[1745887656459,68.54344285,148.51,148.5,1e-08]
[1745887656664,68.68560442,148.51,148.5,1e-08]
[1745887659971,68.54344285,148.51,148.5,1e-08]
[1745887660876,68.68560442,148.51,148.5,1e-08]
[1745887664375,70.28880442,148.51,148.5,1e-08]
[1745887664569,44.28880442,148.51,148.5,1e-08]
[1745887665575,133.75282462,148.49,148.48,0.063]
[1745887665779,139.02642065,148.49,148.48,0.063]
[1745887667575,44.64964886,148.47,148.46,0.063]
[1745887667765,44.64964886,148.47,148.46,1e-08]
[1745887667766,54.45900249,148.47,148.46,1e-08]
[1745887668188,54.45900249,148.47,148.44,0.063]
[1745887668189,127.48664884,148.45,148.44,0.063]
[1745887668392,18.64964886,148.44,148.39,0.063]
[1745887668594,17.83359603,148.41,148.39,0.063]
[1745887669573,42.54752627,148.41,148.39,0.063]
[1745887670560,24.71393024,148.41,148.39,0.063]
[1745887671365,42.54752627,148.41,148.39,0.063]
[1745887671882,24.71393024,148.41,148.39,0.063]
[1745887672087,42.54752627,148.41,148.39,0.063]
[1745887673066,42.68968784,148.41,148.39,0.063]
[1745887674565,60.52328387,148.41,148.39,0.063]
[1745887675178,42.68968784,148.41,148.39,0.063]
[1745887676272,44.79181043,148.4,148.39,0.063]
[1745887676497,54.45900249,148.4,148.39,0.063]
[1745887677287,62.62540646,148.38,148.37,0.063]
[1745887677493,76.06540646,148.38,148.37,0.063]
[1745887677787,77.57570646,148.38,148.37,0.063]
[1745887677967,36.62540646,148.37,148.36,0.063]
[1745887678482,42.69132275,148.37,148.36,0.063]
[1745887678673,24.85772672,148.37,148.36,0.063]
[1745887678862,42.69132275,148.37,148.36,0.063]
[1745887679506,62.62540646,148.36,148.35,1e-08]
[1745887679665,18.64964886,148.3,148.29,0.063]
[1745887679875,49.92324489,148.3,148.29,0.063]
[1745887680481,56.13418596,148.3,148.29,0.063]
[1745887681074,0.14216157,148.29,148.28,1e-08]
[1745887681274,18.64964886,148.28,148.25,0.063]
[1745887681583,36.48324489,148.26,148.25,0.063]
[1745887682497,42.55366172,148.26,148.25,0.063]
[1745887682992,42.69582329,148.26,148.25,0.063]
[1745887683604,68.69582329,148.26,148.25,0.063]
[1745887683792,86.52941932,148.26,148.25,0.063]
[1745887683998,60.52941932,148.26,148.25,0.063]
[1745887685801,42.69582329,148.26,148.25,0.063]
[1745887686002,68.69582329,148.26,148.25,0.063]
[1745887687797,86.52941932,148.26,148.25,0.063]
[1745887687975,60.52941932,148.26,148.25,0.063]
[1745887689096,101.62881043,148.24,148.23,0.063]
[1745887689280,50.06540646,148.24,148.23,0.063]
[1745887690982,56.13664229,148.24,148.23,0.063]
[1745887691803,58.08964886,148.24,148.23,0.063]
[1745887692001,81.99448072,148.24,148.23,0.063]
[1745887692503,82.13664229,148.24,148.23,0.063]
[1745887693479,82.13664229,148.24,148.17,6.6208]
[1745887693480,0.14216157,148.22,148.17,6.6208]
[1745887693706,0.14216157,148.23,148.17,24.45439603]
[1745887693903,43.83359603,148.22,148.17,24.51739603]
[1745887694097,17.83359603,148.23,148.19,17.83359603]
[1745887694306,18.64964886,148.23,148.2,17.83359603]
[1745887695193,18.64964886,148.23,148.21,17.83359603]
[1745887695407,18.64964886,148.23,148.2,17.83359603]
[1745887695711,24.72152229,148.23,148.2,17.83359603]
[1745887696116,42.55511832,148.23,148.19,17.83359603]
[1745887696299,42.55511832,148.23,148.17,6.6838]
[1745887696300,18.64964886,148.21,148.18,17.83359603]
[1745887696483,42.55511832,148.23,148.18,17.83359603]
[1745887696686,42.55511832,148.23,148.19,17.83359603]
[1745887697081,24.72152229,148.23,148.19,17.83359603]
[1745887697909,82.9,148.21,148.19,17.83359603]
[1745887703943,88.97247436,148.21,148.18,17.83359603]
[1745887704093,88.97247436,148.21,148.17,6.6838]
[1745887704638,88.97247436,148.21,148.18,17.83359603]
[1745887705014,82.9,148.21,148.18,17.83359603]
[1745887706118,82.9,148.21,148.19,17.83359603]
[1745887706522,88.97252198,148.21,148.19,17.83359603]
[1745887706826,88.97252198,148.21,148.18,17.83359603]
[1745887708023,18.64964886,148.2,148.17,6.6838]
[1745887708327,18.64964886,148.2,148.17,0.063]
[1745887708328,119.38324489,148.2,148.17,0.063]
[1745887708823,13.46,148.19,148.17,0.063]
[1745887710008,13.46,148.19,148.17,17.89659603]
[1745887711131,13.46,148.19,148.17,0.063]
[1745887711431,19.53331414,148.19,148.17,0.063]
[1745887711807,19.53331414,148.19,148.17,17.89659603]
[1745887712213,19.53331414,148.19,148.17,0.063]
[1745887712414,102.43331414,148.19,148.17,0.063]
[1745887712613,96.36,148.19,148.17,0.063]
[1745887713018,36.48324489,148.18,148.17,0.063]
[1745887713606,18.64964886,148.18,148.17,0.063]
[1745887714839,24.72334301,148.18,148.17,0.063]
[1745887715197,42.55693904,148.18,148.17,0.063]
[1745887717143,13.46,148.19,148.17,17.89659603]
[1745887717619,13.46,148.19,148.17,0.063]
[1745887718207,36.48324489,148.18,148.17,0.063]
[1745887719213,42.55693904,148.18,148.17,0.063]
[1745887721047,44.34640061,148.18,148.17,0.063]
[1745887721632,44.34640061,148.18,148.17,1e-08]
[1745887722220,64.34640061,148.18,148.17,1e-08]
[1745887722421,64.34640061,148.18,148.13,0.063]
[1745887722422,36.62540646,148.14,148.13,0.063]
[1745887722620,50.16540646,148.14,148.13,0.063]
[1745887723329,56.2407406,148.14,148.13,0.063]
[1745887724721,56.2407406,148.14,148.13,1e-08]
[1745887724934,74.07433663,148.14,148.13,1e-08]
[1745887725153,95.72163663,148.14,148.13,1e-08]
[1745887725628,57.8880406,148.14,148.13,1e-08]
[1745887726836,75.72163663,148.14,148.13,1e-08]
[1745887727142,18.64964886,148.09,148.08,1e-08]
[1745887727440,50.16540646,148.09,148.08,1e-08]
[1745887728321,57.79049183,148.09,148.08,1e-08]
[1745887728635,0.14216157,148.04,148.02,0.063]
[1745887728948,32.18964886,148.03,148.02,0.063]
[1745887729426,13.54,148.03,148.02,17.89659603]
[1745887730512,18.64964886,148.06,148.02,17.89659603]
[1745887730812,13.54,148.07,148.04,17.83359603]
[1745887731731,13.54,148.07,148.03,17.83359603]
[1745887731935,13.54,148.07,148.04,17.83359603]
[1745887732138,13.54,148.07,148.05,17.83359603]
[1745887732525,13.54,148.07,148.06,17.83359603]
[1745887732723,13.54,148.07,148.03,6.07975182]
[1745887732933,13.54,148.07,148.05,17.83359603]
[1745887733638,13.54,148.07,148.03,6.07975182]
[1745887733940,13.54,148.07,148.05,17.83359603]
[1745887737328,13.54,148.07,148.02,0.063]
[1745887737329,13.54,148.07,148.06,17.83359603]
[1745887737938,13.54,148.07,148.04,6.07931955]
[1745887738134,13.54,148.07,148.06,17.83359603]
[1745887740022,13.54,148.07,148.06,24.27869603]
[1745887740826,13.54,148.07,148.06,6.4451]
[1745887741245,13.54,148.07,148.05,17.83359603]
[1745887741946,19.61821628,148.07,148.04,17.83359603]
[1745887742133,18.64964886,148.06,148.03,17.83359603]
[1745887742738,18.64964886,148.06,148.02,24.32639603]
[1745887742935,36.48324489,148.06,148.02,24.32639603]
[1745887743133,18.64964886,148.06,148.03,17.83359603]
[1745887744047,6.07902735,148.05,148.03,17.83359603]
[1745887744243,6.07902735,148.05,148.02,24.32639603]
[1745887744427,24.7284063,148.06,148.02,24.32639603]
[1745887744627,24.7284063,148.06,148.03,17.83359603]
[1745887744830,18.64964886,148.06,148.04,17.83359603]
[1745887745841,13.54,148.07,148.04,17.83359603]
[1745887746028,13.54,148.07,148.06,17.83359603]
[1745887746429,13.54,148.07,148.05,17.83359603]
[1745887746848,19.61836043,148.07,148.02,6.4928]
[1745887747036,19.61836043,148.07,148.04,17.83359603]
[1745887747759,13.54,148.07,148.04,17.83359603]
[1745887748845,13.54,148.07,148.05,17.83359603]
[1745887750446,19.61821143,148.07,148.04,17.83359603]
[1745887751125,18.64964886,148.06,148.02,6.4928]
[1745887751331,18.64964886,148.06,148.02,24.32639603]
[1745887751560,36.48324489,148.06,148.02,0.063]
[1745887752032,18.64964886,148.04,148.02,0.063]
[1745887752227,119.38324489,148.03,148.02,0.063]
[1745887752462,125.46309356,148.03,148.02,0.063]
[1745887756339,42.56309356,148.03,148.02,0.063]
[1745887761665,42.70525513,148.03,148.02,0.063]
[1745887761987,42.70525513,148.03,148.02,1e-08]
[1745887762681,44.24105513,148.03,148.02,1e-08]
[1745887764879,44.09889356,148.03,148.02,1e-08]
[1745887765184,42.70525513,148.03,148.02,1e-08]
[1745887765349,68.70525513,148.03,148.02,1e-08]
[1745887765956,62.48324489,148.03,148.02,1e-08]
[1745887766173,6.07912683,148.05,148.02,1e-08]
[1745887766379,18.64964886,148.04,148.02,1e-08]
[1745887766592,17.83359603,148.04,148.02,1e-08]
[1745887766954,18.64964886,148.04,148.02,1e-08]
[1745887768661,24.72909046,148.04,148.02,1e-08]
[1745887769069,18.64964886,148.04,148.02,1e-08]
[1745887769378,24.72910973,148.04,148.02,1e-08]
[1745887770316,18.64964886,148.03,148.02,1e-08]
[1745887771395,24.72826563,148.06,148.02,17.83359604]
[1745887771600,18.64964886,148.04,148.02,17.83359604]
[1745887776712,18.64964886,148.04,148.02,1e-08]
[1745887776886,101.54964886,148.04,148.02,1e-08]
[1745887777086,101.54964886,148.04,148.02,17.83359604]
[1745887777306,82.9,148.04,148.02,1e-08]
[1745887777510,82.9,148.06,148.03,11.24737484]
[1745887777693,13.6,148.07,148.05,11.24737484]
[1745887777894,13.6,148.07,148.06,11.24737484]
[1745887778405,13.6,148.07,148.05,11.24737484]
[1745887779514,13.6,148.07,148.05,17.99438468]
[1745887783095,82.9,148.11,148.06,17.99438468]
[1745887783397,82.9,148.11,148.08,17.99438468]
[1745887784118,82.9,148.11,148.07,17.99438468]
[1745887788319,82.9,148.11,148.08,17.99438468]
[1745887788711,82.9,148.11,148.09,17.99438468]
[1745887789926,13.6,148.12,148.1,17.99438468]
[1745887790111,13.6,148.12,148.11,17.99438468]
[1745887790703,0.03,148.14,148.11,35.98876936]
[1745887790906,0.03,148.14,148.13,17.99438468]
[1745887791612,0.03,148.14,148.13,24.07012895]
[1745887792197,0.03,148.14,148.13,25.59732895]
[1745887792424,0.03,148.14,148.13,32.22102895]
[1745887792913,0.03,148.17,148.13,47.41038964]
[1745887793224,0.03,148.17,148.16,17.99438468]
[1745887793842,0.03,148.17,148.16,24.06889871]
[1745887799108,0.03,148.17,148.16,17.99438468]
[1745887799310,0.03,148.17,148.12,80.9]
[1745887799614,18.02438468,148.17,148.12,17.99438468]
[1745887799825,18.64964886,148.15,148.13,17.99438468]
[1745887800026,18.64964886,148.15,148.14,17.99438468]
[1745887800327,82.9,148.16,148.14,17.99438468]
[1745887800526,82.9,148.16,148.15,17.99438468]
[1745887800732,18.67964886,148.17,148.15,17.99438468]
[1745887802208,0.03,148.17,148.16,17.99438468]
[1745887809618,0.03,148.17,148.16,11.22587392]
[1745887811533,0.03,148.17,148.16,17.96103324]
[1745887813340,0.03,148.17,148.16,24.03554727]
[1745887815557,0.03,148.17,148.16,17.96103324]
[1745887815722,0.03,148.17,148.13,32.07545766]
[1745887816044,0.03,148.17,148.16,17.96103324]
[1745887817031,0.03,148.17,148.16,22.93300998]
[1745887817342,0.03,148.17,148.16,22.93302391]
[1745887817545,0.03,148.17,148.16,17.96103324]
[1745887817729,0.03,148.17,148.16,22.93395387]
[1745887818231,0.03,148.17,148.16,4.97292063]
[1745887818550,0.03,148.17,148.16,22.93395387]
[1745887819048,0.03,148.17,148.15,17.96103324]
[1745887821541,0.03,148.17,148.13,17.96103324]
[1745887821751,19.57973324,148.17,148.13,17.96103324]
[1745887822252,36.6106821,148.15,148.07,6.0353]
[1745887822555,36.6106821,148.13,148.09,17.96103324]
[1745887822761,18.64964886,148.13,148.09,17.96103324]
[1745887823454,5.01684358,148.12,148.1,17.96103324]
[1745887824238,5.01684358,148.11,148.1,17.96103324]
[1745887828450,5.01684358,148.12,148.1,17.96103324]
[1745887828750,5.01684358,148.12,148.11,17.96103324]
[1745887829448,5.01684358,148.12,148.08,0.063]
[1745887829650,17.96103324,148.09,148.08,0.063]
[1745887831249,22.97787682,148.09,148.08,0.063]
[1745887831743,47.70491105,148.09,148.08,0.063]
[1745887841146,29.74387781,148.09,148.08,0.063]
[1745887841339,47.70491105,148.09,148.08,0.063]
[1745887843560,47.70491105,148.09,148.03,0.063]
[1745887843561,18.64964886,148.08,148.03,0.063]
[1745887843748,29.90223917,148.04,148.03,0.063]
[1745887844262,34.91908275,148.04,148.03,0.063]
[1745887845152,40.99852073,148.04,148.03,0.063]
[1745887845570,47.75454564,148.04,148.03,0.063]
[1745887846467,42.73770206,148.04,148.03,0.063]
[1745887846768,47.74806721,148.04,148.03,0.063]
[1745887847746,42.73770206,148.04,148.03,0.063]
[1745887852899,130.64312391,148.04,148.03,0.063]
[1745887854867,125.63770206,148.04,148.03,0.063]
[1745887856686,130.64469697,148.04,148.03,0.063]
[1745887857586,125.63770206,148.04,148.03,0.063]
[1745887859682,130.65019235,148.04,148.03,0.063]
[1745887859883,29.74157713,148.04,148.03,0.063]
[1745887862477,23.66213915,148.04,148.03,0.063]
[1745887866803,5.01249029,148.04,148.03,11.3153775]
[1745887868217,5.01249029,148.04,148.03,0.063]
[1745887868382,40.99395463,148.04,148.03,0.063]
[1745887869083,41.1361162,148.04,148.03,0.063]
[1745887873107,56.04418793,148.03,148.02,1e-08]
[1745887874193,61.05667822,148.03,148.02,1e-08]
[1745887874910,67.13652689,148.03,148.02,1e-08]
[1745887880615,41.13652689,148.03,148.02,1e-08]
[1745887888523,41.13652689,148.03,147.97,0.063]
[1745887888524,18.64964886,147.99,147.97,0.063]
[1745887888828,112.64486778,147.98,147.97,0.063]
[1745887890909,107.47439323,147.98,147.97,0.063]
[1745887891109,118.72677073,147.98,147.97,0.063]
[1745887894120,137.37641959,147.98,147.97,0.063]
[1745887894323,54.4764196,147.98,147.97,0.063]
[1745887895798,43.2240421,147.98,147.97,0.063]
[1745887896000,37.14213915,147.98,147.97,0.063]
[1745887896212,48.39451665,147.98,147.97,0.063]
[1745887897025,37.14213915,147.98,147.97,0.063]
[1745887897230,48.39451665,147.98,147.97,0.063]
[1745887898134,54.4764196,147.98,147.97,0.063]
[1745887898431,48.39451665,147.98,147.97,0.063]
[1745887898829,54.4764196,147.98,147.97,0.063]
[1745887901333,65.87095867,147.98,147.97,0.063]
[1745887902428,18.64964886,147.97,147.96,1e-08]
[1745887902633,29.90202636,147.97,147.96,1e-08]
[1745887903027,35.98434034,147.97,147.96,1e-08]
[1745887903643,40.99683063,147.97,147.96,1e-08]
[1745887904115,123.89683063,147.97,147.96,1e-08]
[1745887904815,149.89683063,147.97,147.96,1e-08]
[1745887916155,101.54964885,147.94,147.93,0.9626767]
[1745887916327,30.04418793,147.94,147.93,0.9626767]
[1745887916940,35.05667822,147.94,147.93,0.9626767]
[1745887918364,41.1402256,147.94,147.93,0.9626767]
[1745887920553,67.1402256,147.94,147.93,0.9626767]
[1745887921862,66.99806403,147.94,147.93,0.9626767]
[1745887922032,23.66213915,147.94,147.93,0.9626767]
[1745887922649,29.74568653,147.94,147.93,0.9626767]
[1745887922845,40.99806403,147.94,147.93,0.9626767]
[1745887923158,41.1402256,147.94,147.93,0.9626767]
[1745887924636,40.99806403,147.94,147.93,0.9626767]
[1745887925559,29.74568653,147.94,147.93,0.9626767]
[1745887926070,40.99806403,147.94,147.93,0.9626767]
[1745887927068,23.66213915,147.94,147.93,0.9626767]
[1745887934768,29.74568653,147.94,147.93,0.9626767]
[1745887934977,40.99806403,147.94,147.93,0.9626767]
[1745887939277,29.74568653,147.94,147.93,0.9626767]
[1745887940378,36.9581397,147.94,147.93,0.9626767]
[1745887941957,29.74568653,147.94,147.93,0.9626767]
[1745887942280,23.66213915,147.94,147.93,0.9626767]
[1745887943876,29.74568653,147.94,147.93,0.9626767]
[1745887945087,82.9,147.98,147.93,8.17512987]
[1745887945383,82.93,148.02,147.97,36.06226585]
[1745887945564,82.93,148.02,148.01,7.21245317]
[1745887945880,0.03,148.02,148.01,7.21245317]
[1745887946076,0.03,148.02,148.01,15.14275317]
[1745887946271,0.03,148.02,148.01,16.49370798]
[1745887947083,0.03,148.02,148.01,22.5743782]
[1745887947485,0.03,148.02,148.01,26.60878792]
[1745887955685,0.03,148.02,148.01,26.75094949]
[1745887955895,20.84470377,148.04,148.01,26.75094949]
[1745887956191,20.84470377,148.04,148.02,17.32712231]
[1745887956579,20.84470377,148.04,148.02,28.5739852]
[1745887956779,20.84470377,148.04,148.03,23.84431709]
[1745887958695,20.84470377,148.04,148.03,29.92416576]
[1745887958903,20.84470377,148.04,148.03,18.67730287]
[1745887961308,20.84470377,148.04,148.03,29.92416576]
[1745887961505,41.68940755,148.06,148.03,45.26594902]
[1745887961717,41.68940755,148.06,148.05,22.49372578]
[1745887961928,0.03,148.08,148.05,23.84417203]
[1745887962133,0.03,148.08,148.07,12.79896289]
[1745887962298,62.53411133,148.1,148.09,26.0]
[1745887962498,62.53411133,148.1,148.09,38.59699444]
[1745887962717,62.53411133,148.1,148.09,38.73915601]
[1745887963116,19.85155723,148.1,148.09,49.9860189]
[1745887963515,6.42606754,148.1,148.09,69.68340427]
[1745887964394,0.03,148.11,148.09,69.68340427]
[1745887964620,0.03,148.11,148.1,22.49372578]
[1745887964929,0.03,148.12,148.11,0.14216157]
[1745887965232,0.03,148.12,148.11,23.98572617]
[1745887965606,0.03,148.12,148.11,30.06229088]
[1745887968524,0.03,148.14,148.11,30.06229088]
[1745887968525,0.03,148.14,148.12,26.0]
[1745887968840,0.03,148.14,148.13,0.14216157]
[1745887969005,0.03,148.14,148.13,12.7385648]
[1745887969607,0.03,148.14,148.13,18.81430907]
[1745887970035,0.03,148.18,148.13,34.00366976]
[1745887970206,0.03,148.18,148.13,35.66986976]
[1745887970717,0.03,148.18,148.16,11.24686289]
[1745887971234,0.03,148.18,148.16,12.73833634]
[1745887971923,0.03,148.18,148.16,18.81285037]
[1745887972728,0.03,148.18,148.16,12.59617477]
[1745887972905,0.03,148.18,148.16,18.6706888]
[1745887973302,0.03,148.18,148.16,12.59617477]
[1745887973508,0.03,148.18,148.13,1.34951653]
[1745887973718,0.03,148.18,148.15,11.24686289]
[1745887974732,0.03,148.18,148.16,11.24686289]
[1745887974917,0.03,148.18,148.15,11.24686289]
[1745887975629,0.03,148.18,148.16,11.24686289]
[1745887976215,0.03,148.18,148.14,7.42484501]
[1745887976438,0.03,148.18,148.14,1.34959628]
[1745887976641,0.03,148.18,148.15,11.24686289]
[1745887977536,0.03,148.18,148.16,11.24686289]
[1745887979631,0.03,148.18,148.15,11.24686289]
[1745887980014,0.03,148.18,148.14,6.07501572]
[1745887980210,0.03,148.18,148.15,11.24686289]
[1745887980943,0.03,148.18,148.16,11.24686289]
[1745887981314,0.03,148.18,148.15,11.24686289]
[1745887982433,0.03,148.18,148.14,11.24686289]
[1745887983325,0.03,148.18,148.15,11.24686289]
[1745887984342,0.03,148.18,148.16,11.24686289]
[1745887985735,0.03,148.18,148.16,17.32137692]
[1745887991236,0.03,148.18,148.16,17.46353849]
[1745887991744,0.03,148.19,148.18,26.14216157]
[1745887992042,0.03,148.22,148.19,48.63588735]
[1745887992253,0.03,148.22,148.21,11.38902446]
[1745887992559,0.03,148.23,148.22,11.38902446]
[1745887992723,0.03,148.23,148.22,12.59566786]
[1745887993416,0.03,148.23,148.22,18.66772291]
[1745887993937,11.27686289,148.23,148.17,1.34900235]
[1745887994239,11.24686289,148.22,148.18,11.24686289]
[1745887994450,0.03,148.23,148.18,11.24686289]
[1745887994628,11.24686289,148.22,148.18,11.24686289]
[1745887994825,0.03,148.23,148.2,11.24686289]
[1745887995037,0.03,148.23,148.22,11.24686289]
[1745887997637,0.03,148.23,148.18,7.42244689]
[1745887997944,11.24686289,148.22,148.18,1.34906563]
[1745887998245,11.24686289,148.22,148.17,11.24686289]
[1745887999548,17.96238686,148.22,148.17,17.96238686]
[1745887999952,17.96238686,148.2,148.15,1.34935367]
[1745888000146,17.96238686,148.2,148.14,19.77500301]
[1745888000448,17.96238686,148.2,148.15,17.96238686]
[1745888001023,17.96238686,148.2,148.16,17.96238686]
[1745888001643,17.96238686,148.21,148.16,17.96238686]
[1745888001828,100.86238686,148.22,148.18,17.96238686]
[1745888002028,106.93446681,148.22,148.17,17.96238686]
[1745888002229,17.96238686,148.21,148.17,17.96238686]
[1745888002447,17.96238686,148.2,148.16,17.96238686]
[1745888003044,18.64964886,148.21,148.16,17.96238686]
[1745888003445,17.96238686,148.2,148.16,17.96238686]
[1745888004130,42.68478253,148.21,148.16,17.96238686]
[1745888004852,42.68478253,148.21,148.17,17.96238686]
[1745888005240,42.68478253,148.21,148.16,17.96238686]
[1745888005738,125.58478253,148.21,148.16,17.96238686]
[1745888007249,125.58478253,148.21,148.15,6.07479467]
[1745888007464,17.96238686,148.2,148.15,17.96238686]
[1745888007952,17.96238686,148.19,148.15,17.96238686]
[1745888008263,17.96238686,148.18,148.14,17.96238686]
[1745888008559,38.22613572,148.19,148.14,17.96238686]
[1745888008726,38.22613572,148.19,148.15,17.96238686]
[1745888009459,38.22613572,148.19,148.14,6.07531979]
[1745888009636,38.22613572,148.19,148.14,24.03770665]
[1745888009838,38.22613572,148.19,148.15,17.96238686]
[1745888011633,38.22613572,148.19,148.15,24.03727364]
[1745888012240,38.22613572,148.19,148.14,24.03764572]
[1745888013655,38.22613572,148.19,148.13,26.0]
[1745888013656,38.22613572,148.19,148.15,24.0372645]
[1745888015664,19.57648686,148.19,148.15,6.07487764]
[1745888015844,19.57648686,148.19,148.14,24.03758643]
[1745888016036,17.96238686,148.18,148.14,24.03758643]
[1745888017061,25.64986932,148.19,148.14,24.03758643]
[1745888019562,18.91836452,148.19,148.14,17.30608163]
[1745888019760,37.56801338,148.19,148.14,17.30608163]
[1745888020755,11.23088206,148.18,148.14,17.30608163]
[1745888024271,37.56799661,148.19,148.14,17.30608163]
[1745888024670,37.56799661,148.19,148.15,11.23088206]
[1745888024871,82.9,148.2,148.17,11.23088206]
[1745888025171,82.9,148.2,148.16,11.23088206]
[1745888026976,11.23088206,148.19,148.1,32.27704283]
[1745888027281,11.23088206,148.14,148.1,6.13996641]
[1745888027454,11.23088206,148.13,148.1,0.063]
[1745888027868,11.23088206,148.12,148.1,0.063]
[1745888029175,6.07592605,148.13,148.1,0.063]
[1745888029176,82.9,148.14,148.1,11.29388206]
[1745888029353,94.13088206,148.14,148.1,11.29388206]
[1745888029562,94.13088206,148.14,148.1,0.063]
[1745888029765,11.23088206,148.13,148.1,0.063]
[1745888029971,11.23088206,148.11,148.1,0.063]
[1745888031359,35.95709563,148.11,148.1,0.063]
[1745888033575,11.23088206,148.12,148.1,0.063]
[1745888033878,11.23088206,148.11,148.1,0.063]
[1745888034671,18.64964886,148.14,148.1,0.063]
[1745888034879,11.23088206,148.13,148.1,0.063]
[1745888035278,11.23088206,148.12,148.1,0.063]
[1745888036784,6.07582296,148.13,148.1,0.063]
[1745888036785,11.23088206,148.11,148.1,0.063]
[1745888037284,11.23088206,148.12,148.1,0.063]
[1745888040493,82.9,148.13,148.1,0.063]
[1745888040657,94.13088206,148.13,148.1,0.063]
[1745888041892,11.23088206,148.12,148.1,0.063]
[1745888043082,11.23088206,148.11,148.1,0.063]
[1745888043281,82.9,148.13,148.1,11.29388206]
[1745888043789,58.44964886,148.16,148.1,11.29388206]
[1745888043790,94.13088206,148.15,148.1,11.29388206]
[1745888044365,11.23088206,148.14,148.1,0.063]
[1745888044686,11.23088206,148.13,148.1,0.063]
[1745888045282,11.23088206,148.11,148.1,0.063]
[1745888047586,18.64964886,148.13,148.1,0.063]
[1745888047793,11.23088206,148.12,148.1,0.063]
[1745888051004,37.59979563,148.11,148.1,0.063]
[1745888051786,51.45979563,148.11,148.1,0.063]
[1745888054467,51.45979563,148.11,148.08,0.063]
[1745888054468,44.64964886,148.09,148.08,1e-08]
[1745888054687,26.0,148.06,148.05,0.063]
[1745888054894,51.09088206,148.06,148.05,0.063]
[1745888055094,13.86,148.06,148.05,0.063]
[1745888055277,11.23088206,148.09,148.05,11.29388206]
[1745888056991,11.23088206,148.08,148.05,0.063]
[1745888061699,17.30829788,148.09,148.05,0.063]
[1745888061878,11.23088206,148.09,148.05,0.063]
[1745888063077,11.23088206,148.09,148.05,11.29388206]
[1745888063779,114.06799871,148.1,148.05,17.37284072]
[1745888063988,11.23088206,148.09,148.05,11.29388206]
[1745888067197,11.23088206,148.09,148.05,17.37284256]
[1745888067404,114.06799871,148.1,148.06,11.23088206]
[1745888068703,11.23088206,148.09,148.05,11.29388206]
[1745888068905,11.23088206,148.09,148.05,0.063]
[1745888070100,11.23088206,148.07,148.05,0.063]
[1745888070299,11.23088206,148.06,148.05,0.063]
[1745888070502,82.9,148.07,148.05,0.063]